fUSD/lending_fUSD_20250904
["ID","MTS","AMOUNT","RATE_DAILY","PERIOD"]
[383498753,1756959050551,-160.0,0.00031,120]
[383498754,1756959050561,-6817.38,0.00031,7]
[383498755,1756959050571,-703.92694342,0.00031096,2]
[383498756,1756959050582,-830.0,0.00031096,2]
[383498757,1756959050592,-1896.21725746,0.000314,2]
[383498758,1756959050601,-981.61,0.000315,7]
[383498759,1756959050611,-9387.4649024,0.00031562,16]
[383498760,1756959050621,-208.2606923,0.00031642,2]
[383498761,1756959050631,-150.0,0.00031759,2]
[383498762,1756959050641,-4000.0,0.00031786,4]
[383498763,1756959050650,-327.3491668,0.00031823,2]
[383498764,1756959050658,-981.61,0.000319,7]
[383498765,1756959050666,-3400.0,0.000319,11]
[383498766,1756959050676,-6817.38,0.000319,7]
[383498767,1756959050686,-160.0,0.00032,30]
[383498768,1756959050695,-160.0,0.00032,3]
[383498769,1756959050705,-6817.38,0.00032,7]
[383498770,1756959050715,-981.61,0.000325,7]
[383498771,1756959050724,-1175.0,0.00032586,2]
[383498772,1756959050734,-6163.0,0.00032586,2]
[383498773,1756959050743,-4163.0,0.00032586,2]
[383498774,1756959050753,-12337.84,0.00032586,2]
[383498775,1756959050763,-724.0,0.00032586,2]
[383498776,1756959050772,-238.5,0.000326,7]
[383498777,1756959050782,-9387.4649024,0.00032672,18]
[383498778,1756959050792,-508.0,0.000328,2]
[383498779,1756959050807,-2035.0,0.00032853,2]
[383498780,1756959050829,-3382.0,0.00032853,2]
[383498781,1756959050847,-1258.0,0.00032853,2]
[383498782,1756959050865,-924.0,0.00032853,2]
[383498783,1756959050880,-567.0,0.00032853,2]
[383498784,1756959050896,-1300.0,0.00032853,2]
[383498785,1756959050911,-600.0,0.00032853,2]
[383498786,1756959050927,-1577.0,0.00032853,2]
[383498787,1756959050942,-811.0,0.00032853,2]
[383498788,1756959050960,-4000.0,0.00032877,30]
[383498789,1756959050980,-156.14300977,0.00033,2]
[383498790,1756959050997,-6817.38,0.00033,7]
[383498791,1756959051011,-150.0,0.00033129,2]
[383498792,1756959051033,-174.18,0.00033165,2]
[383498793,1756959051047,-150.0,0.00033465,30]
[383498794,1756959051065,-162.32077512,0.00033465,30]
[383498795,1756959051080,-199.0,0.00033698,7]
[383498796,1756959051094,-327.3491668,0.00033767,2]
[383498797,1756959051110,-9387.4649024,0.00033783,21]
[383498798,1756959051126,-981.61,0.000338,7]
[383498799,1756959051141,-4000.0,0.00033809,4]
[383498800,1756959051157,-498.0,0.0003398,2]
[383498801,1756959051173,-152.0,0.00034,30]
[383498802,1756959051188,-200.0,0.00034,30]
[383498803,1756959051202,-510.0,0.00034185,9]
[383498804,1756959051217,-157.62,0.00034271,30]
[383498805,1756959051232,-199.0,0.00034383,9]
[383498806,1756959051248,-150.0,0.00034499,2]
[383498807,1756959051265,-369.77772297,0.00034892,2]
[383498808,1756959051280,-9387.4649024,0.00034893,23]
[383498809,1756959051294,-500.0,0.00034934,7]
[383498810,1756959051311,-500.0,0.00034934,7]
[383498811,1756959051328,-152.0,0.00035,30]
[383498812,1756959051345,-199.0,0.00035068,11]
[383498813,1756959051360,-488.0,0.0003517,2]
[383498814,1756959051376,-240.94921476,0.00035191,30]
[383498815,1756959051393,-150.0,0.00035191,30]
[383498816,1756959051409,-1878.90610166,0.00035191,30]
[383498817,1756959051426,-1538.43,0.00035383,30]
[383498818,1756959051442,-1538.43,0.00035383,30]
[383498819,1756959051459,-1538.43,0.00035383,30]
[383498820,1756959051469,-1538.43,0.00035383,30]
[383498821,1756959051479,-1175.0,0.00035586,2]
[383498822,1756959051488,-6163.0,0.00035586,2]
[383498823,1756959051498,-4163.0,0.00035586,2]
[383498824,1756959051507,-724.0,0.00035586,2]
[383498825,1756959051516,-1538.43,0.00035657,30]
[383498826,1756959051525,-1538.43,0.00035657,30]
[383498827,1756959051535,-327.3491668,0.0003571,2]
[383498828,1756959051545,-199.0,0.00035753,13]
[383498829,1756959051555,-500.0,0.00035756,7]
[383498830,1756959051564,-5454.62,0.000358,14]
[383498831,1756959051574,-4000.0,0.00035833,4]
[383498832,1756959051583,-2035.0,0.00035853,2]
[383498833,1756959051593,-3382.0,0.00035853,2]
[383498834,1756959051602,-1258.0,0.00035853,2]
[383498835,1756959051611,-924.0,0.00035853,2]
[383498836,1756959051620,-567.0,0.00035853,2]
[383498837,1756959051630,-1300.0,0.00035853,2]
[383498838,1756959051639,-600.0,0.00035853,2]
[383498839,1756959051648,-1577.0,0.00035853,2]
[383498840,1756959051658,-811.0,0.00035853,2]
[383498841,1756959051667,-150.0,0.00035869,2]
[383498842,1756959051677,-150.0,0.00035888,120]
[383498843,1756959051687,-1538.43,0.00035931,30]
[383498844,1756959051696,-1538.43,0.00035931,30]
[383498845,1756959051706,-981.61,0.00036,7]
[383498846,1756959051715,-6817.38,0.00036,7]
[383498847,1756959051724,-212.59699798,0.00036,30]
[383498848,1756959051733,-514.64478986,0.00036,30]
[383498849,1756959051743,-160.0,0.00036,30]
[383498850,1756959051753,-152.0,0.00036,30]
[383498851,1756959051762,-9387.4649024,0.00036003,26]
[383498852,1756959051772,-150.0,0.00036178,120]
[383498853,1756959051781,-1538.43,0.00036205,30]
[383498854,1756959051790,-1538.43,0.00036205,30]
[383498855,1756959051799,-478.0,0.0003635,2]
[383498856,1756959051808,-170.68904158,0.0003641,30]
[383498857,1756959051818,-150.0,0.0003641,30]
[383498858,1756959051827,-182.97803685,0.0003641,30]
[383498859,1756959051835,-199.0,0.00036438,15]
[383498860,1756959051845,-1538.43,0.00036479,30]
[383498861,1756959051854,-1538.43,0.00036479,30]
[383498862,1756959051864,-989.5004854,0.00036513,2]
[383498863,1756959051873,-500.0,0.00036578,7]
[383498864,1756959051882,-500.0,0.00036578,7]
[383498865,1756959051891,-8127.40522554,0.00036632,2]
[383498866,1756959051901,-5000.0,0.00036632,2]
[383498867,1756959051910,-1000.0,0.00036699,30]
[383498868,1756959051919,-1538.43,0.00036753,30]
[383498869,1756959051928,-1538.43,0.00036753,30]
[383498870,1756959051937,-3957.17012553,0.00036754,9]
[383498871,1756959051947,-1137.41971572,0.00036809,2]
[383498872,1756959051957,-300.0,0.000369,14]
[383498873,1756959051966,-2231.0,0.00036903,20]
[383498874,1756959051975,-1000.0,0.00037,30]
[383498875,1756959051984,-152.0,0.00037,30]
[383498876,1756959051994,-5454.62,0.00037,14]
[383498877,1756959052003,-208.43,0.00037,2]
[383498878,1756959052012,-1538.43,0.00037027,30]
[383498879,1756959052021,-1538.43,0.00037027,30]
[383498880,1756959052031,-9387.4649024,0.00037114,28]
[383498881,1756959052040,-199.0,0.00037123,17]
[383498882,1756959052050,-251.23983181,0.000372,120]
[383498883,1756959052059,-251.23983179,0.000372,120]
[383498884,1756959052069,-251.23983179,0.000372,120]
[383498885,1756959052078,-251.23983179,0.000372,120]
[383498886,1756959052087,-548673.72981967,0.00037239,2]
[383498887,1756959052097,-150.0,0.00037239,2]
[383498888,1756959052106,-151.0,0.00037239,30]
[383498889,1756959052115,-151.0,0.00037239,30]
[383498890,1756959052124,-151.0,0.00037239,10]
[383498891,1756959052134,-151.348522,0.00037239,30]
[383498892,1756959052143,-151.0,0.00037239,30]
[383498893,1756959052152,-151.0,0.00037239,30]
[383498894,1756959052162,-151.0,0.00037239,30]
[383498895,1756959052171,-151.0,0.00037239,30]
[383498896,1756959052180,-154.633908,0.00037239,30]
[383498897,1756959052190,-151.0,0.00037239,30]
[383498898,1756959052200,-151.802739,0.00037239,30]
[383498899,1756959052209,-154.633908,0.00037239,30]
[383498900,1756959052219,-151.0,0.00037239,30]
[383498901,1756959052228,-2231.0,0.00037283,20]
[383498902,1756959052237,-1538.43,0.00037301,30]
[383498903,1756959052247,-1538.43,0.00037301,30]
[383498904,1756959052256,-500.0,0.000374,7]
[383498905,1756959052266,-280.0,0.000374,30]
[383498906,1756959052275,-947.84662789,0.00037479,2]
[383498907,1756959052284,-200.0,0.00037519,7]
[383498908,1756959052294,-1134.4990153,0.00037527,2]
[383498909,1756959052304,-468.0,0.0003753,2]
[383498910,1756959052313,-11452.12378734,0.0003757,2]
[383498911,1756959052322,-1538.43,0.00037575,30]
[383498912,1756959052331,-1538.43,0.00037575,30]
[383498913,1756959052341,-3456.4272527,0.00037638,2]
[383498914,1756959052351,-5327.0848553,0.00037649,2]
[383498915,1756959052360,-327.3491668,0.00037654,2]
[383498916,1756959052370,-251.23983179,0.00037655,120]
[383498917,1756959052380,-180.3835006,0.00037655,7]
[383498918,1756959052389,-2030.68888796,0.00037655,2]
[383498919,1756959052398,-150.0,0.00037657,120]
[383498920,1756959052407,-2231.0,0.00037664,20]
[383498921,1756959052416,-1000.0,0.00037699,30]
[383498922,1756959052426,-4300.0,0.000377,13]
[383498923,1756959052435,-510.0,0.0003771,13]
[383498924,1756959052444,-332.84,0.00037713,2]
[383498925,1756959052454,-150.0,0.00037739,120]
[383498926,1756959052464,-2014.69867842,0.00037747,2]
[383498927,1756959052474,-4702716.37508666,0.00037747,8]
[383498928,1756959052675,-291.41837167,0.00022465,2]
[383498929,1756959052686,-2931.7,0.00027671,2]
[383498930,1756959052695,-2931.7,0.00027945,2]
[383498931,1756959052706,-2931.85603332,0.00028219,2]
[383498932,1756959052718,-154.633908,0.00037239,30]
[383498933,1756959052730,-293.032379,0.00037239,30]
[383498934,1756959052739,-105551.79085253,0.00037747,8]
[383498935,1756959052786,-18060.60952194,0.00037747,8]
[383498936,1756959052798,-670.23996749,0.00037747,8]
[383498937,1756959052819,-154.633908,0.00037239,30]
[383498938,1756959052829,-873.93335833,0.00037747,8]
[383498939,1756959061172,-400.0,0.00019186,2]
[383498940,1756959068177,-38.18036634,0.00019186,2]
[383498941,1756959068206,-400.0,0.00021917,2]
[383498942,1756959068234,-400.0,0.00021917,2]
[383498943,1756959068262,-400.0,0.00021917,2]
[383498944,1756959068290,-400.0,0.00021917,2]
[383498945,1756959068329,-400.0,0.00021917,2]
[383498946,1756959068367,-400.0,0.00021917,2]
[383498947,1756959068396,-416.68,0.00021917,2]
[383498948,1756959068425,-400.0,0.00021917,2]
[383498949,1756959068455,-400.0,0.00021917,2]
[383498950,1756959068485,-5000.0,0.00021991,2]
[383498951,1756959068518,-350.88878926,0.00022191,2]
[383498952,1756959068691,-49.11121074,0.00022191,2]
[383498953,1756959279046,191.08,0.00013699,2]
[383498954,1756959389886,-159.80878926,0.00020187,2]
[383498955,1756959389909,-31.27121074,0.00020187,2]
[383498957,1756959708040,-400.0,0.00021367,2]
[383498958,1756959715070,-400.0,0.00021367,2]
[383498959,1756959723498,-400.0,0.00021367,2]
[383498960,1756959730631,-61.29170295,0.00021367,2]
[383498961,1756959730667,-277.4165941,0.00021367,2]
[383498962,1756959738098,-400.0,0.00021367,2]
[383498963,1756959745466,-400.0,0.00021367,2]
[383499023,1756959921398,4461.33144645,9e-05,2]
[383499024,1756959921420,549.20640991,9e-05,2]
[383499025,1756959933351,-5000.0,0.0002,4]
[383499026,1756959938099,4819.28503654,9e-05,2]
[383499027,1756959938121,5368.49144645,9e-05,2]
[383499028,1756959938143,5368.49144645,9e-05,2]
[383499029,1756959938169,5368.49144645,9e-05,2]
[383499030,1756959938195,1266.92122595,9e-05,2]
[383499031,1756959940506,-416.68,0.0002,4]
[383499032,1756959947517,-400.0,0.0002,4]
[383499033,1756959954544,-400.0,0.0002,4]
[383499034,1756959961522,-400.0,0.0002,4]
[383499035,1756959964944,1989.04569844,8e-05,2]
[383499036,1756959968542,-400.0,0.00019973,2]
[383499037,1756959975596,-400.0,0.00019973,2]
[383499038,1756959989871,-277.4165941,0.00019973,2]
[383499039,1756959996994,-169.01632619,0.000199,2]
[383499040,1756959997068,-61.96734762,0.00019973,2]
[383499041,1756960004669,-400.0,0.00019973,2]
[383499042,1756960053974,600.0,0.000193,7]
[383499043,1756960056078,1200.0,0.000194,7]
[383499044,1756960058165,1800.0,0.000195,7]
[383499045,1756960065653,-159.80878926,0.000196,7]
[383499046,1756960109676,1168.35885607,0.00018,2]
[383499048,1756960207282,214.82,0.00013699,2]
[383499064,1756960231598,-2240.19121074,0.000196,7]
[383499065,1756960231607,-191.7789191,0.000196,2]
[383499066,1756960231617,-250.0,0.000196,2]
[383499067,1756960231626,-166.59688982,0.000197,7]
[383499068,1756960231712,-261.1285208,0.000197,7]
[383499069,1756960231824,-2572.27458938,0.000197,7]
[383499070,1756960231833,-300.0,0.00019798,2]
[383499071,1756960231842,-1200.0,0.00019798,2]
[383499072,1756960231852,-300.0,0.00019798,2]
[383499073,1756960231861,-500.0,0.00019799,2]
[383499074,1756960231871,-500.0,0.00019799,2]
[383499075,1756960231880,-500.0,0.00019799,2]
[383499077,1756960231889,-227.65897815,0.00019799,2]
[383499079,1756960231898,-500.0,0.00019799,2]
[383499081,1756960231908,-600.0,0.000198,7]
[383499083,1756960231917,-276.0,0.00019899,2]
[383499085,1756960231926,-600.0,0.000199,7]
[383499087,1756960231935,-2291.4441676,0.000199,2]
[383499089,1756960231945,-203.74354746,0.000199,2]
[383499091,1756960231954,-5459.48491419,0.000199,2]
[383499094,1756960231973,-646.21575683,0.000199,2]
[383499096,1756960231983,-472.25593566,0.000199,2]
[383499098,1756960231991,-207.94963536,0.000199,2]
[383499100,1756960232001,-1901.74453943,0.000199,2]
[383499102,1756960232011,-128.94434853,0.000199,2]
[383499104,1756960232020,-191.7789191,0.000199,2]
[383499106,1756960232029,-240.51133414,0.000199,3]
[383499108,1756960232039,-353.61605828,0.00019973,2]
[383499110,1756960232048,-309.6462611,0.00019973,2]
[383499112,1756960232057,-869.0,0.00019973,2]
[383499114,1756960232067,-243.4386402,0.00019973,2]
[383499116,1756960232076,-151.85,0.0001999,2]
[383499118,1756960232085,-151.85,0.0001999,2]
[383499120,1756960232094,-151.85,0.0001999,2]
[383499122,1756960232104,-151.85,0.0001999,2]
[383499124,1756960232113,-151.85,0.0001999,2]
[383499126,1756960232122,-151.85,0.0001999,2]
[383499128,1756960232131,-151.85,0.0001999,2]
[383499130,1756960232140,-744.47174596,0.00019999,2]
[383499132,1756960232149,-15211.04892687,0.00019999,2]
[383499144,1756960237589,-500.0,0.00019699,2]
[383499145,1756960237598,-588.02345119,0.00019699,2]
[383499146,1756960237608,-559.3612847,0.00019699,2]
[383499147,1756960237617,-500.0,0.00019699,2]
[383499148,1756960237627,-209.5492896,0.0001999,2]
[383499149,1756960237637,-533462.6808928,0.00019999,2]
[383499150,1756960237646,-13217.57913456,0.0002,4]
[383499151,1756960237656,-870025.4931683,0.0002,4]
[383499152,1756960237665,-11009088.65876936,0.0002,2]
[383499153,1756960237677,-2545.29068757,0.0002,2]
[383499154,1756960237686,-1505.89372314,0.0002,2]
[383499155,1756960237696,-6016.18178057,0.0002,2]
[383499156,1756960237705,-264143.84113553,0.0002,2]
[383499157,1756960237716,-264143.84113553,0.0002,2]
[383499158,1756960237727,-25139.43396417,0.0002,2]
[383499159,1756960237737,-2500414.61113918,0.0002,2]
[383499160,1756960237750,-13001.6226,0.0002,2]
[383499161,1756960237762,-590.58512303,0.0002,2]
[383499162,1756960237773,-2220.09507366,0.0002,2]
[383499163,1756960237802,-705.50396723,0.0002,2]
[383499164,1756960237819,-575.65774224,0.0002,2]
[383499167,1756960239646,-10654.1697106,0.000199,2]
[383499168,1756960239656,-6091026.34843506,0.0002,2]
[383499169,1756960239666,-3950.0,0.0002,2]
[383499170,1756960239676,-1271.71202482,0.0002,2]
[383499171,1756960239685,-7244.75747251,0.0002,2]
[383499172,1756960239696,-1026.52431661,0.0002,2]
[383499173,1756960239704,-2812.24900413,0.0002,2]
[383499174,1756960239714,-90420.34464239,0.0002,2]
[383499175,1756960239723,-100550.60800774,0.0002,2]
[383499176,1756960239733,-13998.31342909,0.0002,2]
[383499177,1756960239743,-4000.0,0.0002,4]
[383499178,1756960239752,-8776.13473935,0.0002001,2]
[383499179,1756960239761,-214.82,0.00020187,2]
[383499180,1756960239771,-250.0,0.00020234,2]
[383499181,1756960239780,-22241.21426535,0.000207,2]
[383499182,1756960239790,-63904.66068185,0.0002085,2]
[383499183,1756960239799,-240.51133413,0.000209,3]
[383499184,1756960239810,-133467.98930771,0.00021,2]
[383499185,1756960239833,-2825.14305104,0.00021,2]
[383499186,1756960239845,-2791.90131137,0.00021,2]
[383499187,1756960239856,-3778.89840801,0.00021,2]
[383499188,1756960239871,-534.41007715,0.00021,2]
[383499189,1756960239882,-1231.9455343,0.00021,2]
[383499268,1756960332115,-416.68,0.00019501,2]
[383499269,1756960339215,-400.0,0.00019501,2]
[383499270,1756960346765,-400.0,0.00019501,2]
[383499272,1756960368884,158.02,0.00010238,2]
[383499273,1756960369087,158.02,0.00012285,2]
[383499274,1756960369747,158.02,0.00014333,2]
[383499275,1756960369845,158.02,0.0001638,2]
[383499276,1756960369948,97.26566599,0.00018428,2]
[383499277,1756960369971,60.75433401,0.00018428,2]
[383499284,1756961320180,211.73,0.00013699,2]
[383499285,1756961345414,157.03,9.71e-05,2]
[383499286,1756961345820,157.03,0.00012137,2]
[383499287,1756961346037,157.03,0.00014565,2]
[383499288,1756961346335,157.03,0.00016992,2]
[383499289,1756961357351,-151.0,0.00019419,2]
[383499290,1756961398241,-6.03,0.00019419,2]
[383499291,1756961398289,-387.94,0.00019442,2]
[383499292,1756961405687,-277.4165941,0.00019442,2]
[383499321,1756961432037,-73.1234059,0.00019442,2]
[383499323,1756961432047,-250.0,0.00019485,2]
[383499325,1756961432056,-174.82985402,0.00019528,2]
[383499328,1756961432083,-75.17014598,0.00019528,2]
[383499329,1756961432093,-221.41471634,0.0001959,2]
[383499330,1756961432107,-69.21606969,0.0001959,2]
[383499331,1756961432116,-429.66087151,0.0001959,2]
[383499332,1756961432139,-103.11149227,0.0001959,2]
[383499333,1756961432148,-160.14321845,0.0001959,2]
[383499334,1756961432157,-155.36037244,0.0001959,2]
[383499335,1756961432166,-151.0,0.00019594,2]
[383499336,1756961432175,-200.0,0.00019642,2]
[383499337,1756961432185,-200.0,0.00019653,2]
[383499338,1756961432194,-1200.0,0.00019813,2]
[383499339,1756961432203,-33744.19083545,0.00019816,2]
[383499340,1756961432214,-8925.51916455,0.00019816,2]
[383499341,1756961432224,-1000.0,0.00019899,2]
[383499342,1756961432233,-1000.0,0.00019899,2]
[383499343,1756961432242,-2971.629,0.00019899,2]
[383499344,1756961432252,-2117.5615,0.00019899,2]
[383499345,1756961432261,-2500.0,0.00019899,2]
[383499346,1756961432270,-5800.0,0.000199,2]
[383499347,1756961432280,-263.43,0.00019989,2]
[383499348,1756961432291,-263.43,0.00019989,2]
[383499349,1756961432301,-263.43,0.00019989,2]
[383499350,1756961432311,-114038.44850964,0.00019999,7]
[383499351,1756961432323,-15340.56411593,0.00019999,7]
[383499352,1756961432335,-19174.75595743,0.00019999,7]
[383499353,1756961432348,-61178.25242426,0.00019999,7]
[383499354,1756961432389,-379.62,0.00019999,7]
[383499355,1756961432464,-497.75,0.00019999,7]
[383499356,1756961432499,-559.63526872,0.00019999,7]
[383499366,1756961439862,-500.0,0.00019813,2]
[383499367,1756961439871,-561.25701454,0.00019813,2]
[383499368,1756961439883,-500.0,0.00019813,2]
[383499369,1756961439892,-450.52180588,0.00019813,2]
[383499370,1756961439902,-5800.0,0.00019892,2]
[383499371,1756961439911,-25081.37827612,0.00019999,7]
[383499372,1756961439921,-514.64478986,0.00019999,7]
[383499373,1756961439930,-212.59699798,0.00019999,7]
[383499374,1756961439939,-160.0,0.00019999,7]
[383499375,1756961439949,-4411.9243532,0.0002,2]
[383499376,1756961439959,-1135.9263368,0.0002001,2]
[383499377,1756961439968,-283.6247538,0.0002001,2]
[383499378,1756961439978,-4931.6127259,0.0002001,2]
[383499379,1756961439987,-17918.3637242,0.0002001,2]
[383499380,1756961439996,-4183.0278264,0.0002001,2]
[383499381,1756961440006,-904.3331141,0.0002001,2]
[383499382,1756961440015,-160.0,0.00020096,7]
[383499383,1756961440024,-175.31114126,0.00020142,2]
[383499384,1756961440034,-160.04,0.00020181,2]
[383499385,1756961440043,-211.73,0.00020187,2]
[383499386,1756961440052,-1347.62,0.00020205,2]
[383499387,1756961440062,-1753.88,0.00020239,2]
[383499388,1756961440073,-1100.86,0.00020294,2]
[383499389,1756961440083,-5000.0,0.0002033,2]
[383499390,1756961440092,-622.39,0.00020402,2]
[383499391,1756961440102,-164.37,0.00020732,2]
[383499392,1756961440111,-263.43,0.0002078,2]
[383499393,1756961440119,-11452.12378734,0.0002079,2]
[383499394,1756961440127,-500.0,0.00020887,2]
[383499395,1756961440135,-600.0,0.00020887,2]
[383499396,1756961440143,-285.78128394,0.00020887,2]
[383499397,1756961440152,-151.0,0.00020887,2]
[383499398,1756961440161,-151.0,0.00020887,2]
[383499399,1756961440169,-200.0,0.00020887,2]
[383499400,1756961440178,-151.0,0.00020887,2]
[383499401,1756961440188,-151.0,0.00020887,2]
[383499402,1756961440198,-151.0,0.00020887,2]
[383499403,1756961440211,-500.0,0.00020887,2]
[383499404,1756961440222,-263.43,0.0002089,2]
[383499405,1756961440376,-173.39,0.00020891,2]
[383499406,1756961440392,-50141.8589,0.000209,2]
[383499407,1756961440402,-500.0,0.00020942,2]
[383499408,1756961440412,-776.95704909,0.00020969,2]
[383499409,1756961440422,-500.0,0.00020997,2]
[383499410,1756961440432,-61338.72651998,0.00021,2]
[383499411,1756961440441,-700.22754792,0.00021,2]
[383499412,1756961440451,-1170.91591973,0.00021,2]
[383499413,1756961440460,-193.27002035,0.00021,2]
[383499414,1756961440470,-3764.56325,0.00021,2]
[383499415,1756961440479,-200.0,0.00021,2]
[383499416,1756961440488,-500.0,0.00021052,2]
[383499417,1756961440497,-300.0,0.0002106,2]
[383499418,1756961440507,-417.0,0.000211,2]
[383499419,1756961440517,-16401.5766817,0.00021111,2]
[383499420,1756961440526,-1002.0,0.000212,2]
[383499421,1756961440536,-1000.0,0.000212,2]
[383499422,1756961440546,-1001.0,0.000212,2]
[383499423,1756961440556,-200.0,0.0002121,2]
[383499424,1756961440565,-1028.0,0.000213,2]
[383499425,1756961440575,-1000.0,0.000213,3]
[383499426,1756961440584,-1000.0,0.000213,3]
[383499427,1756961440594,-158.85748262,0.00021346,2]
[383499428,1756961440603,-503.42282471,0.00021346,2]
[383499429,1756961440613,-200.0,0.00021367,2]
[383499430,1756961440623,-183.87510886,0.00021367,2]
[383499431,1756961440634,-250.0,0.00021386,2]
[383499432,1756961440643,-200.0,0.00021422,2]
[383499433,1756961440652,-159.99,0.00021466,2]
[383499434,1756961440662,-23509.23341946,0.00021467,2]
[383499435,1756961440672,-250.0,0.00021481,2]
[383499436,1756961440681,-217.91063492,0.000215,2]
[383499437,1756961440691,-200.0,0.00021581,2]
[383499438,1756961440700,-200.0,0.00021636,2]
[383499439,1756961440711,-1680.0,0.00021682,2]
[383499440,1756961440721,-200.0,0.00021796,2]
[383499441,1756961440731,-200.0,0.00021853,2]
[383499442,1756961440740,-151.927728,0.00021917,2]
[383499443,1756961440750,-176.568698,0.00021917,2]
[383499444,1756961440760,-153.494755,0.00021917,2]
[383499445,1756961440769,-400.0,0.00021917,2]
[383499446,1756961440778,-400.0,0.00021917,2]
[383499447,1756961440788,-400.0,0.00021917,2]
[383499448,1756961440797,-400.0,0.00021917,2]
[383499449,1756961440806,-234.10693539,0.00021917,2]
[383499450,1756961440815,-405.75252802,0.00021917,2]
[383499451,1756961440825,-400.0,0.00021917,2]
[383499452,1756961440834,-400.0,0.00021917,2]
[383499453,1756961440844,-400.0,0.00021917,2]
[383499454,1756961440853,-400.0,0.00021917,2]
[383499455,1756961440863,-400.0,0.00021917,2]
[383499456,1756961440873,-400.0,0.00021917,2]
[383499457,1756961440883,-400.0,0.00021917,2]
[383499458,1756961440892,-400.0,0.00021917,2]
[383499459,1756961440902,-400.0,0.00021917,2]
[383499460,1756961440911,-400.0,0.00021917,2]
[383499461,1756961440921,-400.0,0.00021917,2]
[383499462,1756961440930,-401.78023975,0.00021917,2]
[383499463,1756961440939,-400.0,0.00021917,2]
[383499464,1756961440948,-400.0,0.00021917,2]
[383499465,1756961440958,-400.0,0.00021917,2]
[383499466,1756961440968,-400.0,0.00021917,2]
[383499467,1756961440978,-400.0,0.00021917,2]
[383499468,1756961440987,-400.0,0.00021917,2]
[383499469,1756961440997,-400.0,0.00021917,2]
[383499470,1756961441006,-400.0,0.00021917,2]
[383499471,1756961441015,-400.0,0.00021917,2]
[383499472,1756961441025,-400.0,0.00021917,2]
[383499473,1756961441034,-400.0,0.00021917,2]
[383499474,1756961441043,-400.0,0.00021917,2]
[383499475,1756961441053,-604.77,0.00021917,2]
[383499476,1756961441062,-400.0,0.00021917,2]
[383499477,1756961441071,-511.6251106,0.00021917,2]
[383499478,1756961441081,-400.0,0.00021917,2]
[383499479,1756961441091,-400.0,0.00021917,2]
[383499481,1756961441100,-400.0,0.00021917,2]
[383499483,1756961441110,-788.92,0.00021917,2]
[383499485,1756961441119,-454.81371216,0.00021917,2]
[383499487,1756961441128,-400.0,0.00021917,2]
[383499489,1756961441138,-400.0,0.00021917,2]
[383499491,1756961441147,-400.0,0.00021917,2]
[383499493,1756961441157,-400.0,0.00021917,2]
[383499495,1756961441167,-400.0,0.00021917,2]
[383499497,1756961441177,-400.0,0.00021917,2]
[383499499,1756961441186,-400.0,0.00021917,2]
[383499501,1756961441195,-400.0,0.00021917,2]
[383499503,1756961441204,-252.40272995,0.00021917,2]
[383499505,1756961441214,-400.0,0.00021917,2]
[383499507,1756961441223,-534.41007715,0.00021917,2]
[383499509,1756961441233,-299.73524116,0.00021917,2]
[383499511,1756961441242,-400.0,0.00021917,2]
[383499513,1756961441252,-181.42765915,0.00021917,2]